[Event "Late-Titled-Tuesday-Blitz-April-23-2024"]
[Site "Chess.com"]
[Date "2024.04.23"]
[Round "10"]
[White "Evan_Attaker"]
[Black "ArtemDyachuk"]
[Result "1-0"]
[WhiteElo "2625"]
[BlackElo "2717"]
[TimeControl "180+1"]
[EndTime "15:58:53 PDT"]
[Termination "Evan_Attaker won on time"]

1. Nf3 {[%clk 0:03:00.9]} 1... Nf6 {[%clk 0:02:59.5]} 2. c4 {[%clk 0:03:00]}
2... e6 {[%clk 0:02:59.5]} 3. g3 {[%clk 0:02:58.1]} 3... d5 {[%clk 0:02:59.8]}
4. Bg2 {[%clk 0:02:57.9]} 4... dxc4 {[%clk 0:02:59.8]} 5. Qa4+ {[%clk
0:02:56.4]} 5... Nbd7 {[%clk 0:02:59.5]} 6. Qxc4 {[%clk 0:02:55.7]} 6... a6
{[%clk 0:03:00]} 7. Qc2 {[%clk 0:02:53.9]} 7... Rb8 {[%clk 0:02:59.2]} 8. O-O
{[%clk 0:02:53.6]} 8... b5 {[%clk 0:02:59.1]} 9. a4 {[%clk 0:02:52.5]} 9... Bb7
{[%clk 0:02:58.6]} 10. d3 {[%clk 0:02:49.5]} 10... c5 {[%clk 0:02:55.6]} 11. b3
{[%clk 0:02:47.4]} 11... Bd6 {[%clk 0:02:54.1]} 12. Bb2 {[%clk 0:02:47.6]} 12...
O-O {[%clk 0:02:51.8]} 13. Nc3 {[%clk 0:02:46.7]} 13... Bc6 {[%clk 0:02:39.8]}
14. axb5 {[%clk 0:02:46.8]} 14... axb5 {[%clk 0:02:40.7]} 15. Ra6 {[%clk
0:02:46.8]} 15... Qc7 {[%clk 0:02:39.5]} 16. Rfa1 {[%clk 0:02:29.3]} 16... Rfc8
{[%clk 0:01:50.4]} 17. Nd2 {[%clk 0:01:55.2]} 17... Bxg2 {[%clk 0:01:48.7]} 18.
Kxg2 {[%clk 0:01:56.1]} 18... Be5 {[%clk 0:01:42.9]} 19. Nf3 {[%clk 0:01:48.1]}
19... Bxc3 {[%clk 0:01:41.2]} 20. Bxc3 {[%clk 0:01:48.6]} 20... Nd5 {[%clk
0:01:39.4]} 21. Ba5 {[%clk 0:01:37.1]} 21... Qb7 {[%clk 0:01:35]} 22. Bd2 {[%clk
0:01:34.8]} 22... Nb4 {[%clk 0:00:56.4]} 23. Bxb4 {[%clk 0:01:32.9]} 23... cxb4
{[%clk 0:00:57.3]} 24. Qd2 {[%clk 0:01:32.6]} 24... Nc5 {[%clk 0:00:56.6]} 25.
Ra7 {[%clk 0:01:29.2]} 25... Qd5 {[%clk 0:00:48.4]} 26. Rb1 {[%clk 0:01:07.2]}
26... Nxb3 {[%clk 0:00:42.2]} 27. Qxb4 {[%clk 0:01:06.9]} 27... Nc1 {[%clk
0:00:42.8]} 28. Qf4 {[%clk 0:00:54.7]} 28... e5 {[%clk 0:00:36]} 29. Qe3 {[%clk
0:00:26.5]} 29... Na2 {[%clk 0:00:23.8]} 30. Qxe5 {[%clk 0:00:19.9]} 30... Qxe5
{[%clk 0:00:24.7]} 31. Nxe5 {[%clk 0:00:20.8]} 31... Nc3 {[%clk 0:00:22.5]} 32.
Rb2 {[%clk 0:00:21.2]} 32... Nd1 {[%clk 0:00:22]} 33. Rd2 {[%clk 0:00:20.3]}
33... Nc3 {[%clk 0:00:11]} 34. Nxf7 {[%clk 0:00:20.2]} 34... b4 {[%clk
0:00:09.1]} 35. Nd6 {[%clk 0:00:20.6]} 35... Rf8 {[%clk 0:00:07.4]} 36. Nc4
{[%clk 0:00:20.8]} 36... b3 {[%clk 0:00:07.6]} 37. Ra3 {[%clk 0:00:19.4]} 37...
Nb1 {[%clk 0:00:07.5]} 38. Rb2 {[%clk 0:00:16.6]} 38... Nxa3 {[%clk 0:00:07.5]}
39. Nxa3 {[%clk 0:00:17.5]} 39... Rf6 {[%clk 0:00:07.1]} 40. Nb1 {[%clk
0:00:10.8]} 40... Rc6 {[%clk 0:00:06.3]} 41. Nd2 {[%clk 0:00:10.6]} 41... Rc3
{[%clk 0:00:04.4]} 42. Kf3 {[%clk 0:00:09.8]} 42... Rf8+ {[%clk 0:00:03.7]} 43.
Ke3 {[%clk 0:00:09.8]} 43... Re8+ {[%clk 0:00:03.6]} 44. Ne4 {[%clk 0:00:10.4]}
44... g6 {[%clk 0:00:01.3]} 45. Kd2 {[%clk 0:00:10.3]} 45... Rc2+ {[%clk
0:00:01.5]} 46. Rxc2 {[%clk 0:00:10.4]} 46... bxc2 {[%clk 0:00:02.4]} 47. Kxc2
{[%clk 0:00:11.3]} 47... Rc8+ {[%clk 0:00:02.5]} 48. Kd2 {[%clk 0:00:11.8]}
48... Kg7 {[%clk 0:00:03.2]} 49. Ke3 {[%clk 0:00:12.3]} 49... Ra8 {[%clk
0:00:03.5]} 50. h4 {[%clk 0:00:12.2]} 50... Ra1 {[%clk 0:00:04.1]} 51. Kf3
{[%clk 0:00:12.5]} 51... Rb1 {[%clk 0:00:04.6]} 52. e3 {[%clk 0:00:13]} 52...
Rd1 {[%clk 0:00:04.5]} 53. d4 {[%clk 0:00:13.6]} 53... h6 {[%clk 0:00:04.7]} 54.
Nc3 {[%clk 0:00:13.2]} 54... Rc1 {[%clk 0:00:03.7]} 55. Ne4 {[%clk 0:00:13.6]}
55... Kf7 {[%clk 0:00:03.5]} 56. Kf4 {[%clk 0:00:13.8]} 56... Ke6 {[%clk
0:00:03]} 57. f3 {[%clk 0:00:14.3]} 57... Rc8 {[%clk 0:00:01.9]} 58. Nf2 {[%clk
0:00:12.2]} 58... Rf8+ {[%clk 0:00:01.2]} 59. Ke4 {[%clk 0:00:12.5]} 59... Kd6
{[%clk 0:00:01.2]} 60. Ng4 {[%clk 0:00:12.6]} 60... Re8+ {[%clk 0:00:01.2]} 61.
Ne5 {[%clk 0:00:12.8]} 61... h5 {[%clk 0:00:01.2]} 62. Kd3 {[%clk 0:00:11.9]}
1-0

[Event "Late-Titled-Tuesday-Blitz-April-23-2024"]
[Site "Chess.com"]
[Date "2024.04.23"]
[Round "10"]
[White "MKlose11"]
[Black "mortngabriel"]
[Result "1-0"]
[WhiteElo "2618"]
[BlackElo "2465"]
[TimeControl "180+1"]
[EndTime "15:58:54 PDT"]
[Termination "MKlose11 won on time"]

1. e4 {[%clk 0:02:55.6]} 1... c5 {[%clk 0:02:59.8]} 2. Nc3 {[%clk 0:02:54.6]}
2... Nc6 {[%clk 0:03:00]} 3. g3 {[%clk 0:02:55.5]} 3... g6 {[%clk 0:02:59.6]} 4.
Bg2 {[%clk 0:02:56.4]} 4... Bg7 {[%clk 0:03:00.3]} 5. d3 {[%clk 0:02:57.3]} 5...
d6 {[%clk 0:03:00.9]} 6. Be3 {[%clk 0:02:57.5]} 6... Rb8 {[%clk 0:03:01.4]} 7.
Qd2 {[%clk 0:02:58.1]} 7... b5 {[%clk 0:03:01.8]} 8. Nge2 {[%clk 0:02:58.3]}
8... b4 {[%clk 0:03:02]} 9. Nd1 {[%clk 0:02:58.6]} 9... Nd4 {[%clk 0:03:01.6]}
10. O-O {[%clk 0:02:58.5]} 10... Nxe2+ {[%clk 0:02:46.4]} 11. Qxe2 {[%clk
0:02:58.1]} 11... Nf6 {[%clk 0:02:47.3]} 12. h3 {[%clk 0:02:57.5]} 12... O-O
{[%clk 0:02:47]} 13. Qd2 {[%clk 0:02:57.9]} 13... Ba6 {[%clk 0:02:38.8]} 14. Bh6
{[%clk 0:02:56.3]} 14... c4 {[%clk 0:02:33.9]} 15. Bxg7 {[%clk 0:02:53.9]} 15...
Kxg7 {[%clk 0:02:34.8]} 16. Ne3 {[%clk 0:02:49.6]} 16... cxd3 {[%clk 0:02:28.6]}
17. cxd3 {[%clk 0:02:50.5]} 17... Qb6 {[%clk 0:02:24.7]} 18. Rfc1 {[%clk
0:02:49.2]} 18... Rfc8 {[%clk 0:02:10.3]} 19. d4 {[%clk 0:02:48.9]} 19... e5
{[%clk 0:02:08.2]} 20. dxe5 {[%clk 0:02:44.8]} 20... dxe5 {[%clk 0:02:08.3]} 21.
Nd5 {[%clk 0:02:44.4]} 21... Nxd5 {[%clk 0:02:05.9]} 22. exd5 {[%clk 0:02:44.6]}
22... Qd4 {[%clk 0:01:43.2]} 23. Qxd4 {[%clk 0:02:35]} 23... exd4 {[%clk
0:01:43.2]} 24. Rxc8 {[%clk 0:02:35.9]} 24... Rxc8 {[%clk 0:01:43.1]} 25. Rd1
{[%clk 0:02:35.7]} 25... d3 {[%clk 0:01:24.1]} 26. Bf1 {[%clk 0:02:34.6]} 26...
Rc5 {[%clk 0:01:18.7]} 27. Bxd3 {[%clk 0:02:26.7]} 27... Rxd5 {[%clk 0:01:18.9]}
28. Be2 {[%clk 0:02:26.9]} 28... Rxd1+ {[%clk 0:01:18.6]} 29. Bxd1 {[%clk
0:02:27.8]} 29... Bc4 {[%clk 0:01:13]} 30. a3 {[%clk 0:02:26.5]} 30... bxa3
{[%clk 0:01:08.4]} 31. bxa3 {[%clk 0:02:26.3]} 31... Kf6 {[%clk 0:01:08.9]} 32.
f4 {[%clk 0:02:26.6]} 32... Ke6 {[%clk 0:00:51]} 33. Kf2 {[%clk 0:02:26.6]}
33... Kd5 {[%clk 0:00:50.5]} 34. Ke3 {[%clk 0:02:26.9]} 34... Bf1 {[%clk
0:00:48.3]} 35. Bb3+ {[%clk 0:02:25.4]} 35... Bc4 {[%clk 0:00:46.4]} 36. Ba4
{[%clk 0:02:25.7]} 36... Bf1 {[%clk 0:00:33.8]} 37. h4 {[%clk 0:02:17.7]} 37...
f6 {[%clk 0:00:23.9]} 38. Bb3+ {[%clk 0:02:10.1]} 38... Bc4 {[%clk 0:00:23.2]}
39. Bc2 {[%clk 0:02:10.1]} 39... a5 {[%clk 0:00:22]} 40. h5 {[%clk 0:02:04.9]}
40... f5 {[%clk 0:00:12.2]} 41. h6 {[%clk 0:02:03.5]} 41... Kc5 {[%clk
0:00:07.9]} 42. Ba4 {[%clk 0:01:58.8]} 42... Bg8 {[%clk 0:00:07.9]} 43. Kd3
{[%clk 0:01:53.5]} 43... Bc4+ {[%clk 0:00:06.5]} 44. Kc3 {[%clk 0:01:53.6]}
44... Bg8 {[%clk 0:00:07.1]} 45. Bd1 {[%clk 0:01:48.7]} 45... Kd5 {[%clk
0:00:06.2]} 46. Bf3+ {[%clk 0:01:48.7]} 46... Kc5 {[%clk 0:00:06.1]} 47. Bg2
{[%clk 0:01:41.1]} 47... Bd5 {[%clk 0:00:05.8]} 48. Bf1 {[%clk 0:01:39.1]} 48...
Bg8 {[%clk 0:00:05.3]} 49. Be2 {[%clk 0:01:39.1]} 49... Bf7 {[%clk 0:00:05.4]}
50. g4 {[%clk 0:01:31.4]} 50... Be6 {[%clk 0:00:05.7]} 51. g5 {[%clk 0:01:31.6]}
51... Bf7 {[%clk 0:00:05.8]} 52. Bd3 {[%clk 0:01:28.7]} 52... Bg8 {[%clk
0:00:04.9]} 53. Ba6 {[%clk 0:01:25.8]} 53... Bf7 {[%clk 0:00:05.1]} 54. Bc8
{[%clk 0:01:25.7]} 54... Bg8 {[%clk 0:00:05.5]} 55. Kd3 {[%clk 0:01:17.8]} 55...
Bf7 {[%clk 0:00:05.1]} 56. Bd7 {[%clk 0:01:17.1]} 56... Kd6 {[%clk 0:00:03.9]}
57. Bb5 {[%clk 0:01:14.6]} 57... Kc5 {[%clk 0:00:04.4]} 58. Ba6 {[%clk
0:01:14.7]} 58... Bg8 {[%clk 0:00:04.7]} 59. Bb7 {[%clk 0:01:13.9]} 59... Bf7
{[%clk 0:00:05.1]} 60. Bc8 {[%clk 0:01:13.1]} 60... Bg8 {[%clk 0:00:05.5]} 61.
Bd7 {[%clk 0:01:13.6]} 61... Kd6 {[%clk 0:00:05.6]} 62. Be8 {[%clk 0:01:13.7]}
62... Kc5 {[%clk 0:00:05.8]} 63. Kc3 {[%clk 0:01:12.9]} 63... Kd5 {[%clk
0:00:03.3]} 64. Kd3 {[%clk 0:01:02]} 64... Kc5 {[%clk 0:00:03.3]} 65. Ke3 {[%clk
0:00:58.4]} 65... Kd5 {[%clk 0:00:02.8]} 66. Ba4 {[%clk 0:00:55]} 66... Kc5
{[%clk 0:00:02.8]} 67. Kd3 {[%clk 0:00:55.5]} 67... Bc4+ {[%clk 0:00:02.8]} 68.
Kc3 {[%clk 0:00:55.3]} 68... Bg8 {[%clk 0:00:03.7]} 69. Be8 {[%clk 0:00:55.4]}
69... Kd5 {[%clk 0:00:03.1]} 70. Kb3 {[%clk 0:00:56.1]} 70... Kc5+ {[%clk
0:00:03.5]} 71. Ka4 {[%clk 0:00:55.9]} 71... Kb6 {[%clk 0:00:04]} 72. Bd7 {[%clk
0:00:51.2]} 72... Kc7 {[%clk 0:00:03]} 73. Bb5 {[%clk 0:00:44.7]} 73... Kb6
{[%clk 0:00:03.9]} 74. Be8 {[%clk 0:00:44.8]} 74... Ka6 {[%clk 0:00:02.8]} 75.
Bb5+ {[%clk 0:00:37.8]} 75... Kb6 {[%clk 0:00:03.1]} 76. Bd7 {[%clk 0:00:38.7]}
76... Ka6 {[%clk 0:00:02.9]} 77. Be6 {[%clk 0:00:35.7]} 77... Kb6 {[%clk
0:00:03.3]} 78. Bxg8 {[%clk 0:00:35.6]} 1-0

[Event "Late-Titled-Tuesday-Blitz-April-23-2024"]
[Site "Chess.com"]
[Date "2024.04.23"]
[Round "10"]
[White "Shankland"]
[Black "sergoy"]
[Result "1/2-1/2"]
[WhiteElo "3055"]
[BlackElo "2946"]
[TimeControl "180+1"]
[EndTime "15:59:02 PDT"]
[Termination "Game drawn - insufficient material"]

1. e4 {[%clk 0:03:00.9]} 1... c5 {[%clk 0:02:59.9]} 2. Nf3 {[%clk 0:03:01]} 2...
d6 {[%clk 0:03:00.6]} 3. d4 {[%clk 0:03:00.8]} 3... cxd4 {[%clk 0:03:01.5]} 4.
Nxd4 {[%clk 0:03:01.2]} 4... Nf6 {[%clk 0:03:02.2]} 5. Nc3 {[%clk 0:03:01.5]}
5... a6 {[%clk 0:03:02.8]} 6. Be2 {[%clk 0:03:02]} 6... e5 {[%clk 0:03:02.8]} 7.
Nb3 {[%clk 0:03:02.2]} 7... Be7 {[%clk 0:03:03.3]} 8. Be3 {[%clk 0:03:02.6]}
8... Be6 {[%clk 0:03:03.1]} 9. Qd3 {[%clk 0:03:02.3]} 9... Nbd7 {[%clk
0:02:59.5]} 10. Nd5 {[%clk 0:03:02.1]} 10... Bxd5 {[%clk 0:02:59.8]} 11. exd5
{[%clk 0:03:02.1]} 11... Rc8 {[%clk 0:02:58.8]} 12. c4 {[%clk 0:03:02]} 12...
O-O {[%clk 0:02:55.6]} 13. O-O {[%clk 0:02:58.9]} 13... Ne8 {[%clk 0:02:50.1]}
14. Bg4 {[%clk 0:02:58.8]} 14... g6 {[%clk 0:02:44]} 15. Bxd7 {[%clk 0:02:57.2]}
15... Qxd7 {[%clk 0:02:44.3]} 16. Rad1 {[%clk 0:02:55.3]} 16... Qc7 {[%clk
0:02:36.9]} 17. Rc1 {[%clk 0:02:53]} 17... b6 {[%clk 0:02:35.4]} 18. f4 {[%clk
0:02:45.8]} 18... exf4 {[%clk 0:02:07]} 19. Bxf4 {[%clk 0:02:44.9]} 19... Bf6
{[%clk 0:02:04.8]} 20. Rf2 {[%clk 0:02:41]} 20... Ng7 {[%clk 0:01:53.5]} 21. Nd4
{[%clk 0:02:39.9]} 21... Bxd4 {[%clk 0:01:51]} 22. Qxd4 {[%clk 0:02:39.6]} 22...
Nf5 {[%clk 0:01:49.6]} 23. Qc3 {[%clk 0:02:38]} 23... b5 {[%clk 0:01:42.6]} 24.
g4 {[%clk 0:02:37.2]} 24... Ng7 {[%clk 0:01:42.6]} 25. Bh6 {[%clk 0:02:31]}
25... f5 {[%clk 0:01:42.6]} 26. cxb5 {[%clk 0:01:14.8]} 26... Qxc3 {[%clk
0:01:36.2]} 27. Rxc3 {[%clk 0:01:15.7]} 27... Rxc3 {[%clk 0:01:33]} 28. bxc3
{[%clk 0:01:15.6]} 28... axb5 {[%clk 0:01:33.7]} 29. gxf5 {[%clk 0:01:16]} 29...
Rxf5 {[%clk 0:00:44.4]} 30. Rxf5 {[%clk 0:00:33.8]} 30... Nxf5 {[%clk
0:00:45.3]} 31. Bf4 {[%clk 0:00:34.1]} 31... Kf7 {[%clk 0:00:45.1]} 32. Kf2
{[%clk 0:00:34.1]} 32... Ke7 {[%clk 0:00:44.5]} 33. Kf3 {[%clk 0:00:32.9]} 33...
Kd7 {[%clk 0:00:43.5]} 34. Ke4 {[%clk 0:00:32.9]} 34... Kc7 {[%clk 0:00:41.8]}
35. Kd3 {[%clk 0:00:30.4]} 35... Kb6 {[%clk 0:00:38.9]} 36. c4 {[%clk
0:00:29.9]} 36... bxc4+ {[%clk 0:00:38.7]} 37. Kxc4 {[%clk 0:00:29.6]} 37... Ka5
{[%clk 0:00:39.2]} 38. Bd2+ {[%clk 0:00:19.9]} 38... Ka4 {[%clk 0:00:37.1]} 39.
Bf4 {[%clk 0:00:20.5]} 39... h6 {[%clk 0:00:35.5]} 40. h4 {[%clk 0:00:19]} 40...
h5 {[%clk 0:00:32.8]} 41. Bg5 {[%clk 0:00:18.1]} 41... Ka3 {[%clk 0:00:31.5]}
42. Kb5 {[%clk 0:00:18.5]} 42... Kxa2 {[%clk 0:00:28.2]} 43. Kc6 {[%clk
0:00:18.9]} 43... Kb3 {[%clk 0:00:28.3]} 44. Kd7 {[%clk 0:00:18.8]} 44... Kc4
{[%clk 0:00:27.5]} 45. Ke6 {[%clk 0:00:19.3]} 45... Kd4 {[%clk 0:00:21]} 46. Kf6
{[%clk 0:00:18.7]} 46... Ke4 {[%clk 0:00:08.3]} 47. Kxg6 {[%clk 0:00:18.5]}
47... Ng3 {[%clk 0:00:08]} 48. Bd2 {[%clk 0:00:13.8]} 48... Kxd5 {[%clk
0:00:03.9]} 49. Bf4 {[%clk 0:00:14]} 49... Ne2 {[%clk 0:00:04.2]} 50. Bh2 {[%clk
0:00:13.2]} 50... Ke6 {[%clk 0:00:02.4]} 51. Kxh5 {[%clk 0:00:13.6]} 51... d5
{[%clk 0:00:00.7]} 52. Kg6 {[%clk 0:00:06]} 52... d4 {[%clk 0:00:01.6]} 53. Bc7
{[%clk 0:00:06.2]} 53... d3 {[%clk 0:00:02.2]} 54. Ba5 {[%clk 0:00:06.8]} 54...
Nf4+ {[%clk 0:00:02.8]} 55. Kg5 {[%clk 0:00:06.8]} 55... Nd5 {[%clk 0:00:02.8]}
56. h5 {[%clk 0:00:06.4]} 56... Kf7 {[%clk 0:00:03.3]} 57. h6 {[%clk 0:00:06.2]}
57... Nf6 {[%clk 0:00:03.7]} 58. Kf5 {[%clk 0:00:05.6]} 58... Nh7 {[%clk
0:00:02.7]} 59. Bc3 {[%clk 0:00:06.2]} 59... Nf8 {[%clk 0:00:02.9]} 60. Kg5
{[%clk 0:00:05.6]} 60... Nh7+ {[%clk 0:00:03.2]} 61. Kf5 {[%clk 0:00:06]} 61...
Nf8 {[%clk 0:00:03.9]} 62. Bd2 {[%clk 0:00:06.2]} 62... Nh7 {[%clk 0:00:04.1]}
63. Be1 {[%clk 0:00:06.9]} 63... Nf8 {[%clk 0:00:04.4]} 64. Bc3 {[%clk 0:00:07]}
64... Nh7 {[%clk 0:00:05.3]} 65. Bb4 {[%clk 0:00:07.6]} 65... Nf8 {[%clk
0:00:04.7]} 66. Kg5 {[%clk 0:00:06.4]} 66... Ne6+ {[%clk 0:00:03.8]} 67. Kf5
{[%clk 0:00:06.5]} 67... Nd4+ {[%clk 0:00:03.4]} 68. Ke4 {[%clk 0:00:06.5]}
68... Kg6 {[%clk 0:00:03.3]} 69. Bd2 {[%clk 0:00:05.2]} 69... Nf5 {[%clk
0:00:02.1]} 70. Kxd3 {[%clk 0:00:05.2]} 70... Nxh6 {[%clk 0:00:01.7]} 1/2-1/2

[Event "Late-Titled-Tuesday-Blitz-April-23-2024"]
[Site "Chess.com"]
[Date "2024.04.23"]
[Round "10"]
[White "Polish_fighter3000"]
[Black "Harry_Rakkel"]
[Result "1-0"]
[WhiteElo "3083"]
[BlackElo "2685"]
[TimeControl "180+1"]
[EndTime "15:59:04 PDT"]
[Termination "Polish_fighter3000 won by resignation"]

1. d4 {[%clk 0:03:00.9]} 1... Nf6 {[%clk 0:02:55]} 2. Nf3 {[%clk 0:02:59.6]}
2... d5 {[%clk 0:02:54]} 3. Bf4 {[%clk 0:02:59.5]} 3... e6 {[%clk 0:02:52.8]} 4.
e3 {[%clk 0:02:59.5]} 4... Bd6 {[%clk 0:02:52.2]} 5. Nbd2 {[%clk 0:02:59]} 5...
O-O {[%clk 0:02:49.6]} 6. c3 {[%clk 0:02:58.9]} 6... b6 {[%clk 0:02:47.5]} 7. h4
{[%clk 0:02:57.4]} 7... Bb7 {[%clk 0:02:45.9]} 8. h5 {[%clk 0:02:52.8]} 8...
Nbd7 {[%clk 0:02:43]} 9. Ne5 {[%clk 0:02:37.1]} 9... Ne4 {[%clk 0:02:36.6]} 10.
Nxe4 {[%clk 0:02:29.5]} 10... dxe4 {[%clk 0:02:35.8]} 11. Qg4 {[%clk 0:02:27.5]}
11... f5 {[%clk 0:02:11.4]} 12. Qg3 {[%clk 0:02:23]} 12... Bxe5 {[%clk
0:02:10.1]} 13. Bxe5 {[%clk 0:02:21.8]} 13... Nxe5 {[%clk 0:02:09.8]} 14. Qxe5
{[%clk 0:02:20.3]} 14... Qd6 {[%clk 0:01:59]} 15. h6 {[%clk 0:01:46.1]} 15...
Qxe5 {[%clk 0:01:48]} 16. dxe5 {[%clk 0:01:47]} 16... g6 {[%clk 0:01:46.6]} 17.
O-O-O {[%clk 0:01:34.6]} 17... Rfd8 {[%clk 0:01:43.1]} 18. Bc4 {[%clk
0:01:24.5]} 18... Kf7 {[%clk 0:01:33.5]} 19. Rd4 {[%clk 0:01:18.7]} 19... c5
{[%clk 0:01:08.5]} 20. Rdd1 {[%clk 0:00:43.9]} 20... Bd5 {[%clk 0:01:02.3]} 21.
Bb3 {[%clk 0:00:40.5]} 21... c4 {[%clk 0:00:56]} 22. Ba4 {[%clk 0:00:36.4]}
22... a6 {[%clk 0:00:52.4]} 23. Rd4 {[%clk 0:00:35.6]} 23... b5 {[%clk
0:00:50.7]} 24. Bd1 {[%clk 0:00:29.2]} 24... Rdc8 {[%clk 0:00:47.1]} 25. f4
{[%clk 0:00:20.5]} 25... Rab8 {[%clk 0:00:33.7]} 26. g4 {[%clk 0:00:14.5]} 26...
fxg4 {[%clk 0:00:31.6]} 27. Bxg4 {[%clk 0:00:15.4]} 27... b4 {[%clk 0:00:32]}
28. Kd2 {[%clk 0:00:09.1]} 28... Rc5 {[%clk 0:00:29.1]} 29. cxb4 {[%clk
0:00:07]} 29... Rxb4 {[%clk 0:00:28]} 30. Kc3 {[%clk 0:00:07.5]} 30... Ra4
{[%clk 0:00:24.9]} 31. a3 {[%clk 0:00:06.8]} 31... Rb5 {[%clk 0:00:24.6]} 32.
Bd1 {[%clk 0:00:06.9]} 32... Raa5 {[%clk 0:00:24.9]} 33. Rh2 {[%clk 0:00:04.4]}
33... Rb7 {[%clk 0:00:24.9]} 34. Rhd2 {[%clk 0:00:04.1]} 34... Rab5 {[%clk
0:00:24.5]} 35. Ba4 {[%clk 0:00:04]} 35... R5b6 {[%clk 0:00:24.3]} 36. Bd1
{[%clk 0:00:03.2]} 36... Ke7 {[%clk 0:00:23.4]} 37. Rf2 {[%clk 0:00:02.7]} 37...
a5 {[%clk 0:00:22.7]} 38. Rfd2 {[%clk 0:00:02.8]} 38... Rb8 {[%clk 0:00:22.9]}
39. Ba4 {[%clk 0:00:02.9]} 39... Rb3+ {[%clk 0:00:21.5]} 40. Bxb3 {[%clk
0:00:02.4]} 40... Rxb3+ {[%clk 0:00:22.4]} 41. Kc2 {[%clk 0:00:02.9]} 41... Rxe3
{[%clk 0:00:23.3]} 42. Rxd5 {[%clk 0:00:03.2]} 42... exd5 {[%clk 0:00:23]} 43.
Rxd5 {[%clk 0:00:04.1]} 43... Rh3 {[%clk 0:00:22]} 44. Rxa5 {[%clk 0:00:02.9]}
44... Rxh6 {[%clk 0:00:21.4]} 45. Kd2 {[%clk 0:00:03.1]} 45... Rh3 {[%clk
0:00:20.5]} 46. Rc5 {[%clk 0:00:03.5]} 46... h5 {[%clk 0:00:19]} 47. Rxc4 {[%clk
0:00:03.5]} 47... e3+ {[%clk 0:00:19.3]} 48. Ke2 {[%clk 0:00:03.6]} 48... h4
{[%clk 0:00:20.2]} 49. Rc6 {[%clk 0:00:02.2]} 49... Rg3 {[%clk 0:00:19.9]} 50.
b4 {[%clk 0:00:02.1]} 50... h3 {[%clk 0:00:20.1]} 51. b5 {[%clk 0:00:02.5]}
51... Kd8 {[%clk 0:00:17.6]} 52. Rd6+ {[%clk 0:00:02.4]} 52... Kc8 {[%clk
0:00:16.9]} 53. Rd1 {[%clk 0:00:02.8]} 53... h2 {[%clk 0:00:15.5]} 54. Rh1
{[%clk 0:00:03.3]} 54... Rh3 {[%clk 0:00:14.5]} 55. a4 {[%clk 0:00:04]} 55...
Kb7 {[%clk 0:00:13.7]} 56. a5 {[%clk 0:00:04.4]} 56... Kc7 {[%clk 0:00:10.3]}
57. Kd3 {[%clk 0:00:04]} 57... Kb7 {[%clk 0:00:09.3]} 58. e6 {[%clk 0:00:04.3]}
58... Rh7 {[%clk 0:00:06]} 59. Rxh2 {[%clk 0:00:04.3]} 59... Re7 {[%clk
0:00:06.4]} 60. Re2 {[%clk 0:00:03.4]} 60... Rxe6 {[%clk 0:00:06.6]} 61. Rxe3
{[%clk 0:00:04]} 61... Rf6 {[%clk 0:00:06.5]} 62. Re7+ {[%clk 0:00:03.9]} 62...
Kc8 {[%clk 0:00:06.1]} 63. Ke4 {[%clk 0:00:03.5]} 63... Rf5 {[%clk 0:00:04.7]}
64. Re5 {[%clk 0:00:04.1]} 64... Rf6 {[%clk 0:00:04.5]} 65. a6 {[%clk
0:00:04.3]} 65... Kb8 {[%clk 0:00:03.4]} 66. f5 {[%clk 0:00:04.3]} 66... gxf5+
{[%clk 0:00:03.1]} 67. Rxf5 {[%clk 0:00:05.2]} 67... Rh6 {[%clk 0:00:04]} 68.
Rf8+ {[%clk 0:00:04.5]} 68... Kc7 {[%clk 0:00:04]} 69. a7 {[%clk 0:00:04]} 1-0